bitfinex-derivatives/quotes_SOLF0:USTF0_20250808
["timestamp","ask_amount","ask_price","bid_price","bid_amount"]
[1754675170015,12.70760843,177.6,177.59,144.66]
[1754675170209,12.70760843,177.6,177.56,3.97574424]
[1754675170210,7.07750843,177.6,177.56,3.97574424]
[1754675170416,4.02750843,177.59,177.57,144.66]
[1754675170712,4.02750843,177.58,177.57,153.4911]
[1754675171720,7.07750843,177.58,177.57,144.66]
[1754675172018,7.07750843,177.58,177.57,148.63574424]
[1754675172219,7.07750843,177.58,177.57,144.66]
[1754675172420,7.07750843,177.58,177.57,148.63574424]
[1754675172618,4.02750843,177.58,177.57,151.83574424]
[1754675173021,4.02750843,177.58,177.57,157.46684424]
[1754675173320,7.07750843,177.58,177.57,144.66]
[1754675173715,12.70830843,177.58,177.57,144.66]
[1754675174107,4.02750843,177.58,177.54,3.97574424]
[1754675174309,12.70880843,177.57,177.56,144.66]
[1754675175019,7.07750843,177.57,177.56,144.66]
[1754675175520,7.07750843,177.57,177.56,148.63574424]
[1754675175916,7.07750843,177.57,177.56,151.83574424]
[1754675176315,7.07750843,177.57,177.56,148.63574424]
[1754675177614,4.02750843,177.57,177.56,151.83574424]
[1754675178015,4.02750843,177.57,177.56,148.63574424]
[1754675178218,0.04079039,177.6,177.57,3.2]
[1754675178419,3.05,177.64,177.58,3.97574424]
[1754675178622,5.63,177.61,177.59,148.61574424]
[1754675178921,3.05,177.67,177.6,151.81574424]
[1754675179218,3.05,177.67,177.62,3.97574424]
[1754675179414,3.05,177.67,177.63,144.62]
[1754675179815,5.6288,177.64,177.63,144.62]
[1754675180021,8.6788,177.64,177.63,144.62]
[1754675181027,3.05,177.58,177.54,3.2]
[1754675181223,3.97574424,177.64,177.55,3.97574424]
[1754675181414,5.6314,177.56,177.55,148.59574424]
[1754675181619,3.97574424,177.64,177.55,148.59574424]
[1754675181923,3.05,177.63,177.55,148.59574424]
[1754675182114,8.6814,177.56,177.55,148.59574424]
[1754675182314,8.6814,177.56,177.55,144.62]
[1754675182720,5.6312,177.57,177.55,147.82]
[1754675182918,5.6312,177.57,177.56,3.97574424]
[1754675183118,8.6812,177.57,177.56,3.97574424]
[1754675183325,3.97574424,177.64,177.56,7.17574424]
[1754675183524,3.05,177.58,177.56,7.17574424]
[1754675183922,8.6809,177.58,177.56,7.17574424]
[1754675184123,3.97574424,177.65,177.56,7.17574424]
[1754675184323,3.05,177.57,177.56,7.17574424]
[1754675184527,3.05,177.59,177.57,3.2]
[1754675184725,3.05,177.59,177.58,3.97574424]
[1754675184927,8.6804,177.59,177.58,3.97574424]
[1754675185225,3.05,177.65,177.58,9.60654424]
[1754675185421,5.6298,177.61,177.6,3.97574424]
[1754675185625,8.6798,177.61,177.6,3.97574424]
[1754675186526,3.05,177.63,177.61,3.2]
[1754675186725,3.05,177.63,177.62,3.97574424]
[1754675187523,8.6794,177.63,177.62,3.97574424]
[1754675187722,3.05,177.64,177.62,3.97574424]
[1754675187918,8.6788,177.64,177.63,144.6]
[1754675188125,3.05,177.64,177.61,3.97574424]
[1754675188324,3.05,177.64,177.6,144.6]
[1754675188528,5.6298,177.61,177.6,144.6]
[1754675188728,8.6798,177.61,177.6,144.6]
[1754675189039,3.05,177.66,177.6,147.8]
[1754675189332,8.6789,177.64,177.63,3.97574424]
[1754675189527,3.05,177.68,177.61,148.55574424]
[1754675189728,7.02574424,177.68,177.61,144.58]
[1754675189929,3.05,177.67,177.61,144.58]
[1754675190128,8.6796,177.62,177.61,144.58]
[1754675190322,12.61725258,177.62,177.61,144.58]
[1754675190728,12.61725258,177.62,177.61,148.55574424]
[1754675192732,6.98765258,177.62,177.61,148.55574424]
[1754675192933,3.93765258,177.62,177.61,157.38554424]
[1754675193127,3.93765258,177.62,177.61,151.75574424]
[1754675193327,3.93765258,177.62,177.61,148.55574424]
[1754675193538,6.98765258,177.62,177.61,148.55574424]
[1754675194232,12.61715258,177.62,177.61,148.55574424]
[1754675194433,12.61715258,177.62,177.61,144.58]
[1754675195335,8.6798,177.61,177.6,148.51574424]
[1754675195537,12.61745258,177.61,177.6,148.51574424]
[1754675197138,16.53920538,177.69,177.6,148.51574424]
[1754675197139,12.56346114,177.69,177.6,148.51574424]
[1754675197340,3.25,177.68,177.62,3.97574424]
[1754675198339,8.8792,177.63,177.62,3.97574424]
[1754675198536,5.6292,177.63,177.62,7.02574424]
[1754675198735,8.8792,177.63,177.62,7.02574424]
[1754675198931,8.8792,177.63,177.62,3.97574424]
[1754675199444,5.6295,177.62,177.6,147.59]
[1754675199742,3.25,177.62,177.61,3.97574424]
[1754675200140,8.8795,177.62,177.61,3.97574424]
[1754675200543,3.25,177.62,177.6,148.51574424]
[1754675200750,8.8798,177.61,177.6,148.51574424]
[1754675201638,3.25,177.61,177.56,3.97574424]
[1754675201840,3.25,177.61,177.56,144.5]
[1754675202045,3.25,177.61,177.56,148.47574424]
[1754675202637,8.8811,177.57,177.56,148.47574424]
[1754675203041,3.25,177.57,177.56,148.47574424]
[1754675203243,3.25,177.57,177.56,144.5]
[1754675203442,3.25,177.57,177.56,148.47574424]
[1754675203842,8.8811,177.57,177.56,151.52574424]
[1754675204342,3.25,177.59,177.57,3.05]
[1754675204537,3.25,177.64,177.58,7.02574424]
[1754675204743,3.25,177.63,177.62,3.97574424]
[1754675204942,8.8792,177.63,177.62,3.97574424]
[1754675205144,8.8792,177.63,177.59,3.05]
[1754675205340,3.25,177.62,177.61,3.97574424]
[1754675206041,8.8795,177.62,177.61,3.97574424]
[1754675206247,3.25,177.64,177.58,148.45574424]
[1754675206444,3.25,177.64,177.58,151.50574424]
[1754675206646,5.6298,177.62,177.58,157.13644424]
[1754675206947,3.25,177.64,177.58,157.13644424]
[1754675206948,3.25,177.64,177.62,3.05]
[1754675207340,5.6292,177.63,177.62,3.05]
[1754675207547,3.25,177.64,177.62,3.05]
[1754675207748,12.56346114,177.67,177.63,3.05]
[1754675207947,3.25,177.67,177.64,3.97574424]
[1754675208143,12.56346114,177.69,177.66,3.97574424]
[1754675208347,5.627,177.7,177.68,3.97574424]
[1754675208648,3.25,177.71,177.69,3.05]
[1754675208847,5.6272,177.7,177.68,3.97574424]
[1754675209148,7.12775215,177.69,177.68,3.05]
[1754675209450,7.12775215,177.69,177.68,7.02574424]
[1754675209649,3.87775215,177.69,177.68,7.02574424]
[1754675210449,7.12775215,177.69,177.68,7.02574424]
[1754675210645,12.75505215,177.69,177.68,7.02574424]
[1754675210852,12.75390789,177.69,177.68,3.97574424]
[1754675211051,3.25,177.68,177.63,144.48]
[1754675211246,7.12660789,177.67,177.65,3.05]
[1754675211446,3.87660789,177.66,177.65,3.05]
[1754675211848,3.87660789,177.66,177.63,144.48]
[1754675212153,3.25,177.71,177.64,3.05]
[1754675212451,3.25,177.71,177.7,3.97574424]
[1754675212848,8.8766,177.71,177.7,3.97574424]
[1754675213442,12.56346114,177.75,177.63,147.53]
[1754675213642,3.25,177.7,177.66,3.97574424]
[1754675214047,5.6279,177.67,177.66,7.02574424]
[1754675214248,8.8779,177.67,177.66,7.02574424]
[1754675214655,5.6277,177.68,177.66,7.02574424]
[1754675214853,8.8777,177.68,177.66,7.02574424]
[1754675215550,3.25,177.67,177.64,147.47]
[1754675215748,12.56346114,177.73,177.65,3.97574424]
[1754675215945,8.8785,177.66,177.65,3.97574424]
[1754675216346,8.8785,177.66,177.65,7.02574424]
[1754675216755,8.8785,177.66,177.65,3.97574424]
[1754675217149,8.8785,177.66,177.65,7.02574424]
[1754675217357,5.628,177.67,177.65,7.02574424]
[1754675217750,5.628,177.67,177.66,3.05]
[1754675218051,12.56346114,177.74,177.66,7.02574424]
[1754675218354,3.25,177.73,177.72,3.97574424]
[1754675218555,3.25,177.73,177.72,0.07725704]
[1754675218760,8.876,177.73,177.72,0.07725704]
[1754675221166,3.97574424,177.77,177.7,3.97574424]
[1754675221371,3.25,177.71,177.7,3.97574424]
[1754675221664,16.53920538,177.77,177.7,3.97574424]
[1754675221665,3.97574424,177.77,177.7,3.97574424]
[1754675222365,3.25,177.76,177.69,3.97574424]
[1754675222563,3.25,177.74,177.67,3.97574424]
[1754675222867,3.25,177.68,177.64,3.05]
[1754675223163,3.25,177.7,177.65,3.97574424]
[1754675223367,8.8783,177.66,177.65,3.97574424]
[1754675223567,3.25,177.66,177.61,7.02574424]
[1754675223956,5.6295,177.62,177.61,7.02574424]
[1754675224865,5.6295,177.62,177.61,3.05]
[1754675225067,5.6295,177.62,177.61,7.02574424]
[1754675225267,5.6293,177.63,177.62,3.05]
[1754675226060,8.7693,177.63,177.62,3.05]
[1754675226263,5.6295,177.62,177.61,7.15574424]
[1754675226462,8.7695,177.62,177.61,3.97574424]
[1754675226970,5.6298,177.61,177.6,522.68]
[1754675227167,8.7698,177.61,177.6,522.68]
[1754675227571,8.7698,177.61,177.6,144.36]
[1754675229772,5.6298,177.61,177.6,147.54]
[1754675230769,5.6296,177.62,177.6,144.36]
[1754675230974,5.6296,177.62,177.61,7.15574424]
[1754675231372,8.7696,177.62,177.61,3.97574424]
[1754675232073,5.6296,177.62,177.61,7.15574424]
[1754675232471,8.7696,177.62,177.61,7.15574424]
[1754675232675,3.14,177.65,177.62,3.18]
[1754675232973,3.14,177.66,177.64,7.15574424]
[1754675233170,3.97574424,177.7,177.58,3.18]
[1754675233473,3.97574424,177.74,177.64,7.15574424]
[1754675233667,3.14,177.73,177.66,3.97574424]
[1754675233869,5.6279,177.67,177.66,3.97574424]
[1754675234171,3.14,177.69,177.66,7.15574424]
[1754675234368,5.6273,177.69,177.68,3.97574424]
[1754675234673,20.85164424,177.76,177.66,3.97574424]
[1754675234873,8.768,177.67,177.66,3.97574424]
[1754675235076,5.628,177.67,177.66,7.15574424]
[1754675235972,3.14,177.74,177.67,3.18]
[1754675236174,3.14,177.74,177.7,3.97574424]
[1754675236369,8.7666,177.71,177.7,3.97574424]
[1754675236764,3.14,177.71,177.69,3.18]
[1754675236967,5.6269,177.7,177.69,3.18]
[1754675237978,8.7669,177.7,177.69,3.18]
[1754675238174,3.14,177.7,177.61,3.18]
[1754675238478,3.14,177.7,177.65,6.50146648]
[1754675238779,5.6276,177.68,177.67,3.18]
[1754675238977,5.6276,177.68,177.67,9.68146648]
[1754675239375,8.7676,177.68,177.67,9.68146648]
[1754675239579,8.7676,177.68,177.67,6.50146648]
[1754675240478,5.6276,177.68,177.67,9.68146648]
[1754675241778,3.14,177.72,177.67,6.50146648]
[1754675242076,3.14,177.72,177.71,6.50146648]
[1754675242477,8.7663,177.72,177.71,6.50146648]
[1754675242986,3.14,177.76,177.69,6.50146648]
[1754675243881,8.7669,177.7,177.68,144.26]
[1754675244078,12.58451246,177.76,177.68,150.76146648]
[1754675244277,3.14,177.69,177.68,150.76146648]
[1754675245289,8.7673,177.69,177.68,150.76146648]
[1754675246689,8.7673,177.69,177.68,144.26]
[1754675247086,8.7676,177.68,177.67,6.50146648]
[1754675248687,5.6276,177.68,177.67,9.68146648]
[1754675249291,8.7676,177.68,177.67,9.68146648]
[1754675249986,8.7676,177.68,177.67,6.50146648]
[1754675250192,8.7676,177.68,177.67,144.18]
[1754675250393,5.6279,177.67,177.66,6.50146648]
[1754675250589,8.7679,177.67,177.66,150.68146648]
[1754675251192,8.7679,177.67,177.66,153.86146648]
[1754675251387,17.75146648,177.77,177.68,3.18]
[1754675251388,3.14,177.71,177.68,3.18]
[1754675251595,3.14,177.71,177.7,6.50146648]
[1754675251786,3.14,177.71,177.7,150.68146648]
[1754675252188,8.7666,177.71,177.7,150.68146648]
[1754675254093,5.6266,177.71,177.7,6.50146648]
[1754675254390,3.14,177.72,177.69,6.50146648]
[1754675254594,3.14,177.72,177.7,144.16]
[1754675254790,8.7666,177.71,177.7,144.16]
[1754675255191,3.14,177.75,177.7,144.16]
[1754675255391,3.14,177.75,177.74,6.50146648]
[1754675256098,8.7654,177.75,177.74,6.50146648]
[1754675256295,8.7654,177.75,177.74,150.64146648]
[1754675256495,8.7654,177.75,177.74,144.14]
[1754675257095,8.7654,177.75,177.72,3.04]
[1754675257096,5.626,177.73,177.72,3.04]
[1754675257299,8.766,177.73,177.72,153.68146648]
[1754675257598,3.14,177.75,177.73,3.04]
[1754675257897,3.14,177.79,177.74,9.54146648]
[1754675258094,3.14,177.79,177.77,3.04]
[1754675258296,8.7647,177.77,177.76,150.60146648]
[1754675258901,8.7647,177.77,177.76,148.08631259]
[1754675259903,5.6247,177.77,177.76,151.12631259]
[1754675260102,5.6245,177.78,177.77,3.04]
[1754675261106,8.7647,177.77,177.76,148.08631259]
[1754675262500,5.6245,177.78,177.77,3.04]
[1754675263604,8.7642,177.79,177.78,3.04]
[1754675264008,8.7642,177.79,177.78,7.02631259]
[1754675264204,8.7642,177.79,177.78,3.98631259]
[1754675265000,15.23001259,177.87,177.66,3.98631259]
[1754675265001,3.98631259,177.81,177.73,3.98631259]
[1754675265306,3.98631259,177.81,177.74,144.02]
[1754675265504,5.6254,177.75,177.74,144.02]
[1754675265707,8.7654,177.75,177.74,144.02]
[1754675266504,8.7654,177.75,177.74,147.06]
[1754675266806,8.7654,177.75,177.74,144.02]
[1754675269009,5.6254,177.75,177.74,147.06]
[1754675269606,8.7654,177.75,177.74,144.02]
[1754675270109,8.7654,177.75,177.74,148.00631259]
[1754675270907,8.7654,177.75,177.74,144.02]
[1754675271106,3.14,177.78,177.72,143.96]
[1754675271611,8.766,177.73,177.72,143.96]
[1754675274910,5.626,177.73,177.72,147.0]
[1754675276712,3.14,177.75,177.72,147.0]
[1754675276913,5.6256,177.75,177.74,7.02631259]
[1754675277114,3.14,177.81,177.75,3.04]
[1754675277309,19.71695317,177.86,177.66,255.86631259]
[1754675277310,8.7641,177.79,177.78,3.98631259]
[1754675277509,8.7641,177.79,177.78,7.02631259]
[1754675278015,3.14,177.82,177.8,3.04]
[1754675278311,3.14,177.82,177.81,7.02631259]
[1754675278517,3.14,177.84,177.82,3.04]
[1754675278720,3.14,177.83,177.8,146.94]
[1754675278920,3.14,177.83,177.82,3.98631259]
[1754675279222,3.14,177.84,177.82,7.02631259]
[1754675279521,3.14,177.9,177.82,3.98631259]
[1754675279717,16.57082505,177.9,177.82,3.98631259]
[1754675279914,8.7628,177.83,177.82,3.98631259]
[1754675280922,5.6228,177.83,177.82,7.02631259]
[1754675281822,8.7628,177.83,177.82,7.02631259]
[1754675282219,5.6226,177.84,177.83,3.04]
[1754675282424,3.14,177.92,177.84,3.04]
[1754675282618,3.14,177.92,177.87,3.98631259]
[1754675283018,8.7613,177.88,177.87,1.259e-05]
[1754675283720,12.58451246,177.94,177.85,147.82631259]
[1754675283920,3.14,177.93,177.9,3.98631259]
[1754675284224,3.14,177.93,177.86,3.98631259]
[1754675284617,5.6213,177.88,177.86,3.98631259]
[1754675284817,8.7613,177.88,177.86,7.02631259]
[1754675285017,3.14,177.88,177.86,7.02631259]
[1754675285215,3.98631259,177.95,177.86,7.02631259]
[1754675285418,3.14,177.87,177.86,7.02631259]
[1754675286118,3.14,177.87,177.85,143.82]
[1754675286318,3.14,177.87,177.86,3.98631259]
[1754675286519,3.07,177.94,177.86,7.12631259]
[1754675286721,3.07,177.94,177.9,3.98631259]
[1754675287024,5.6211,177.89,177.87,3.14]
[1754675287223,8.6911,177.89,177.88,3.98631259]
[1754675287424,3.98631259,177.98,177.88,7.12631259]
[1754675287724,3.07,177.97,177.91,3.98631259]
[1754675287929,3.07,177.97,177.9,3.98631259]
[1754675288722,5.6203,177.91,177.9,7.12631259]
[1754675288924,3.07,177.93,177.9,3.98631259]
[1754675289223,3.07,177.93,177.92,7.12631259]
[1754675289625,8.6897,177.93,177.92,7.12631259]
[1754675289930,3.07,177.92,177.85,143.82]
[1754675290128,3.07,177.92,177.91,7.12631259]
[1754675290327,8.69,177.92,177.91,7.12631259]
[1754675291731,3.07,177.94,177.92,3.14]
[1754675291930,3.07,177.94,177.93,3.98631259]
[1754675292325,8.6894,177.94,177.93,3.98631259]
[1754675294127,3.07,177.99,177.86,3.14]
[1754675294328,3.07,177.99,177.93,3.98631259]
[1754675294731,3.07,177.97,177.88,143.66]
[1754675295029,3.07,177.96,177.93,3.98631259]
[1754675295233,3.07,177.96,177.88,143.66]
[1754675295234,3.07,177.96,177.91,3.98631259]
[1754675295828,8.69,177.92,177.91,3.98631259]
[1754675296128,3.07,177.95,177.88,3.98631259]
[1754675296329,5.6209,177.9,177.88,3.98631259]
[1754675296528,3.07,177.9,177.88,7.12631259]
[1754675296728,3.07,177.9,177.88,3.14]
[1754675296932,8.6906,177.9,177.89,7.12631259]
[1754675297230,3.07,177.89,177.88,3.98631259]
[1754675297436,3.07,177.88,177.86,3.98631259]
[1754675297731,3.07,177.87,177.84,3.98631259]
[1754675298327,3.07,177.86,177.85,3.14]
[1754675298528,3.07,177.92,177.85,3.14]
[1754675299127,3.07,177.92,177.86,3.98631259]
[1754675300129,3.07,177.92,177.86,7.12631259]
[1754675300434,5.6213,177.88,177.87,3.14]
[1754675300631,8.6913,177.88,177.87,3.14]
[1754675300828,3.07,177.87,177.86,3.98631259]
[1754675301031,8.6916,177.87,177.86,3.98631259]
[1754675301729,5.6216,177.87,177.86,7.12631259]
[1754675302138,3.98631259,177.95,177.86,7.12631259]
[1754675302139,3.07,177.91,177.87,3.14]
[1754675302436,3.07,177.91,177.9,7.12631259]
[1754675302633,8.6906,177.91,177.9,7.12631259]
[1754675303027,5.6206,177.91,177.9,7.12631259]
[1754675303936,3.07,177.94,177.91,3.14]
[1754675304136,3.07,177.94,177.93,3.14]
[1754675304634,3.07,177.94,177.93,3.98631259]
[1754675305232,8.6894,177.94,177.93,3.98631259]
[1754675305434,3.07,177.94,177.93,7.12631259]
[1754675305735,5.6194,177.94,177.93,7.12631259]
[1754675306130,8.6894,177.94,177.93,3.98631259]
[1754675307736,3.07,177.91,177.89,3.14]
[1754675307932,3.07,177.91,177.9,7.12631259]
[1754675308133,5.62,177.92,177.91,3.14]
[1754675309534,8.69,177.92,177.91,3.14]
[1754675309735,5.6203,177.91,177.9,7.12631259]
[1754675309936,3.07,177.92,177.9,7.12631259]
[1754675310135,3.07,177.92,177.91,3.14]
[1754675310334,3.07,177.92,177.88,146.74]
[1754675310532,3.07,177.92,177.91,3.98631259]
[1754675311237,3.07,177.92,177.89,3.98631259]
[1754675311538,5.6206,177.9,177.89,3.14]
[1754675311729,5.6206,177.9,177.89,7.12631259]
[1754675311928,8.6906,177.9,177.89,3.98631259]
[1754675312537,3.98631259,177.93,177.85,3.98631259]
[1754675312737,3.07,177.92,177.84,150.64631259]
[1754675313135,5.6221,177.86,177.84,150.64631259]
[1754675313332,8.6921,177.86,177.85,3.98631259]
[1754675313737,5.6222,177.85,177.84,146.66]
[1754675313934,3.07,177.86,177.84,146.66]
[1754675314130,8.6921,177.86,177.84,150.64631259]
[1754675314640,3.07,177.85,177.84,150.64631259]
[1754675314938,5.6217,177.87,177.84,150.64631259]
[1754675315143,3.07,177.86,177.85,3.14]
[1754675315439,8.6919,177.86,177.85,3.14]
[1754675315636,3.07,177.95,177.85,3.14]
[1754675315836,3.07,177.95,177.86,3.14]
[1754675316035,5.6208,177.9,177.86,8.7617]
[1754675316234,3.22,177.89,177.88,3.98631259]
[1754675316429,3.22,177.89,177.86,3.98631259]
[1754675316629,3.22,177.87,177.86,3.98631259]
[1754675317640,8.8416,177.87,177.86,3.98631259]
[1754675317834,38.90289681,178.08,177.84,147.50631259]
[1754675317835,3.98631259,177.92,177.84,147.50631259]
[1754675318040,3.22,177.91,177.84,147.50631259]
[1754675318237,5.6221,177.86,177.84,147.50631259]
[1754675318441,3.22,177.85,177.84,147.50631259]
[1754675318833,8.8417,177.87,177.85,2.97]
[1754675319037,8.8417,177.87,177.86,3.98631259]
[1754675319441,5.6217,177.87,177.86,3.98631259]
[1754675319644,8.8417,177.87,177.86,3.98631259]
[1754675320144,8.8417,177.87,177.86,0.03200553]
[1754675322442,5.6217,177.87,177.84,146.49]
[1754675322638,5.6217,177.87,177.86,3.98631259]
[1754675323034,8.8417,177.87,177.86,3.98631259]
[1754675323645,3.22,177.87,177.86,3.98631259]
[1754675323948,3.22,177.88,177.87,2.97]
[1754675324340,8.8413,177.88,177.86,12.57801259]
[1754675324942,3.22,177.88,177.86,12.57801259]
[1754675325245,3.22,177.94,177.87,2.97]
[1754675325443,3.22,177.94,177.91,3.98631259]
[1754675326745,3.22,177.96,177.91,6.95631259]
[1754675327049,3.22,177.96,177.93,3.98631259]
[1754675327345,8.8394,177.94,177.93,3.98631259]
[1754675327548,3.22,177.94,177.93,6.95631259]
[1754675327743,3.22,177.94,177.93,12.57601259]
[1754675327948,3.22,177.95,177.94,2.97]
[1754675328153,3.22,177.95,177.94,6.95631259]
[1754675328443,8.839,177.95,177.94,6.95631259]
[1754675328648,8.839,177.95,177.94,3.98631259]
[1754675329144,3.22,177.98,177.9,143.42]
[1754675329344,16.57082505,177.97,177.9,143.42]
[1754675329547,3.22,177.96,177.9,143.42]
[1754675329747,8.8402,177.92,177.91,6.95631259]
[1754675330149,5.6196,177.94,177.91,3.98631259]
[1754675330357,8.8396,177.94,177.93,3.98631259]
[1754675331155,12.58451246,177.99,177.9,146.39]
[1754675331344,3.22,177.97,177.93,3.98631259]
[1754675331748,3.22,177.97,177.91,3.98631259]
[1754675331950,3.22,177.96,177.91,3.98631259]
[1754675332255,3.22,177.95,177.91,3.98631259]
[1754675332756,8.84,177.92,177.91,3.98631259]
[1754675335057,5.6209,177.9,177.88,146.35]
[1754675335255,5.6209,177.9,177.89,3.98631259]
[1754675335758,3.22,177.91,177.9,2.97]
[1754675336058,3.22,177.91,177.88,143.38]
[1754675336059,3.22,177.95,177.88,146.35]
[1754675336252,3.22,177.95,177.9,3.98631259]
[1754675336457,8.8403,177.91,177.9,3.98631259]
[1754675337860,8.8406,177.9,177.89,7.899e-05]
[1754675338155,3.22,177.89,177.84,3.98631259]
[1754675338353,8.8422,177.85,177.84,3.98631259]
[1754675338657,3.22,177.91,177.84,6.95631259]
[1754675339151,12.58451246,177.92,177.86,3.98631259]
[1754675339454,15.80451246,177.9,177.84,3.98631259]
[1754675339658,5.6222,177.86,177.84,6.95631259]
[1754675340047,3.22,177.85,177.84,6.95631259]
[1754675340251,0.03753969,177.89,177.84,3.98631259]
[1754675340451,0.03753969,177.89,177.84,6.95631259]
[1754675340849,3.22,177.88,177.84,6.95631259]
[1754675341759,5.6222,177.85,177.84,6.95631259]
[1754675342552,5.6222,177.85,177.81,377.68]
[1754675342553,3.22,177.85,177.82,147.28631259]
[1754675343256,7.24315249,177.85,177.76,2.97]
[1754675343457,3.22,177.84,177.76,147.26631259]
[1754675344062,5.6247,177.77,177.76,147.26631259]
[1754675344462,3.22,177.78,177.77,2.97]
[1754675344762,16.57082505,177.87,177.78,2.97]
[1754675344956,3.22,177.85,177.78,6.95631259]
[1754675345154,0.04076732,177.79,177.78,2.97]
[1754675345359,3.22,177.79,177.78,3.98631259]
[1754675345554,16.57082505,177.87,177.78,3.98631259]
[1754675345757,11.2415,177.9,177.8,6.95631259]
[1754675345758,3.22,177.86,177.8,6.95631259]
[1754675345955,3.22,177.86,177.82,3.98631259]
[1754675346151,8.83431451,177.84,177.82,6.93631259]
[1754675346359,3.21171451,177.84,177.82,3.98631259]
[1754675346659,8.83431451,177.84,177.82,3.98631259]
[1754675346860,5.66431451,177.84,177.83,2.95]
[1754675347161,0.04171451,177.84,177.83,2.95]
[1754675348163,0.04171451,177.84,177.83,8.5728]
[1754675348561,3.17,177.88,177.86,2.95]
[1754675348761,8.7913,177.88,177.87,3.98631259]
[1754675349364,3.17,177.88,177.83,3.98631259]
[1754675349559,3.17,177.88,177.82,147.24631259]
[1754675349757,3.17,177.88,177.84,0.03921033]
[1754675349965,5.6225,177.85,177.84,4.02552292]
[1754675350461,8.7925,177.85,177.84,0.03921033]
[1754675350661,8.7925,177.85,177.84,4.02552292]
[1754675352460,3.17,177.87,177.85,2.95]
[1754675352660,3.17,177.87,177.86,3.98631259]
[1754675353472,3.17,177.88,177.86,6.93631259]
[1754675353663,3.17,177.88,177.87,6.93631259]
[1754675353964,8.791,177.89,177.87,6.93631259]
[1754675354156,8.791,177.89,177.88,3.98631259]
[1754675356659,3.20964588,177.9,177.88,6.93631259]
[1754675356860,3.17,177.92,177.89,2.95]
[1754675357061,12.58451246,177.96,177.91,2.95]
[1754675357262,3.17,177.96,177.94,6.93631259]
[1754675357570,3.17,177.95,177.94,3.98631259]
[1754675357864,8.789,177.95,177.94,3.98631259]
[1754675358366,8.789,177.95,177.94,6.93631259]
[1754675358661,5.6187,177.97,177.94,6.93631259]
[1754675358863,3.17,177.99,177.96,3.98631259]
[1754675359073,3.17,177.99,177.98,3.98631259]
[1754675359365,8.7878,177.99,177.98,3.98631259]
[1754675360265,12.58451246,178.05,177.98,3.98631259]
[1754675360466,3.17,178.03,178.01,6.93631259]
[1754675360769,5.6162,178.04,178.03,2.95]
[1754675361074,3.17,178.06,178.04,2.95]
[1754675361267,5.6156,178.06,178.05,6.93631259]
[1754675361667,3.17,178.08,178.05,3.98631259]
[1754675361864,3.17,178.08,178.07,3.98631259]
[1754675362067,3.17,178.08,178.05,0.03564052]
[1754675362272,3.17,178.12,178.06,3.98631259]
[1754675362669,3.17,178.12,178.06,6.4740144]
[1754675363172,8.7853,178.07,178.06,6.4740144]
[1754675363472,12.58451246,178.15,178.06,9.4240144]
[1754675363671,3.17,178.14,178.08,6.4740144]
[1754675363864,5.6146,178.09,178.08,6.4740144]
[1754675364069,8.7846,178.09,178.08,6.4740144]
[1754675364862,5.6149,178.08,178.07,0.03951559]
[1754675365277,8.7849,178.08,178.07,6.51352999]
[1754675365677,3.17,178.08,178.07,6.51352999]
[1754675365868,3.17,178.08,178.07,0.03951559]
[1754675366070,8.7849,178.08,178.07,6.51352999]
[1754675366274,143.14,178.19,178.07,9.46352999]
[1754675366275,3.17,178.1,178.07,9.46352999]
[1754675366677,3.17,178.08,178.07,9.4240144]
[1754675366876,3.17,178.1,178.07,9.4240144]